fUSD/lending_fUSD_20240327
["ID","MTS","AMOUNT","RATE_DAILY","PERIOD"]
[320714703,1711528240464,-765626.42021306,0.0004888,2]
[320714744,1711528240855,-216.24554068,0.0003939,2]
[320714746,1711528240865,-216.24554068,0.0003939,2]
[320714748,1711528240875,-63.07368269,0.0003939,2]
[320714752,1711528240907,-153.17185799,0.0003939,2]
[320714755,1711528240917,-216.24554068,0.0003939,2]
[320714756,1711528240927,-216.24554068,0.0003939,2]
[320714758,1711528240937,-216.24554068,0.0003939,2]
[320714760,1711528240947,-216.24554068,0.0003939,2]
[320714762,1711528240959,-216.24554068,0.0003939,2]
[320714764,1711528240969,-216.24554068,0.0003939,2]
[320714766,1711528240978,-216.24554068,0.0003939,2]
[320714768,1711528240990,-216.24554068,0.0003939,2]
[320714770,1711528240999,-216.24554068,0.0003939,2]
[320714772,1711528241008,-36278.12980059,0.0004888,2]
[320714774,1711528241025,-305.76389219,0.0004888,2]
[320714845,1711528243346,-405.74051498,0.00039389,2]
[320714846,1711528243357,-216.24554068,0.0003939,2]
[320714847,1711528243366,-216.24554068,0.0003939,2]
[320714848,1711528243377,-216.24554068,0.0003939,2]
[320714849,1711528243387,-474.91409618,0.00039399,15]
[320714850,1711528243397,-214.0,0.00046659,120]
[320714851,1711528243407,-663.91732921,0.00048224,30]
[320714852,1711528243422,-9336.08267079,0.00048224,30]
[320714853,1711528243431,-27576.65562011,0.0004888,2]
[320714854,1711528243444,-1730.33757999,0.0004888,2]
[320714855,1711528243455,-4476.7547404,0.0004888,2]
[320714856,1711528243466,-2201.14918097,0.0004888,2]
[320714857,1711528243482,-3587.87892127,0.0004888,2]
[320714858,1711528243514,-4029.77812138,0.0004888,2]
[320714859,1711528243535,-189547.42297429,0.0004888,2]
[320714860,1711528243637,-1868.83409795,0.0004888,2]
[320714866,1711528246435,-240.21091585,0.00030956,2]
[320714867,1711528246446,-1302.32807787,0.0003939,2]
[320714868,1711528246670,-787.30992977,0.0003939,2]
[320714869,1711528246741,-100.38557401,0.0003939,2]
[320714878,1711529237163,-155.0,0.00026888,2]
[320714879,1711529237183,-1114.04550956,0.00026889,2]
[320714880,1711529253095,-1292.00040802,0.00026889,2]
[320714881,1711529368936,-219.00197946,0.00026789,2]
[320714882,1711529368959,-286.08367576,0.0002679,2]
[320714892,1711529431532,-977.1899298,0.00026789,2]
[320714893,1711529431547,-22.8100702,0.00026789,2]
[320714894,1711529431556,-1031.2102017,0.0002679,2]
[320714895,1711529431566,-1473.50915286,0.0002679,2]
[320714896,1711529431579,-315.74470428,0.0002679,2]
[320714897,1711529431592,-57.9250671,0.0002679,2]
[320714898,1711529431603,-267.02962518,0.0002689,2]
[320714899,1711529431629,-4692.81880749,0.0002689,2]
[320714900,1711529431639,-1568.02908856,0.0002689,2]
[320714901,1711529431649,-1617.35231026,0.00026891,2]
[320714902,1711529431660,-162.69745557,0.00026897,2]
[320714903,1711529431670,-250.0,0.00027,3]
[320714904,1711529431680,-392.95929911,0.00030956,2]
[320714905,1711529431690,-150.0,0.00031205,2]
[320714906,1711529431700,-162.69745552,0.00031235,2]
[320714907,1711529431710,-499.99,0.00031235,2]
[320714908,1711529431720,-650.86,0.00034548,2]
[320714909,1711529431730,-150.0,0.00034548,10]
[320714910,1711529431741,-162.69745552,0.00035573,2]
[320714911,1711529431752,-455.39,0.00039389,15]
[320714912,1711529431763,-255.79011194,0.00039476,30]
[320714913,1711529431776,-1744.20988806,0.00039476,30]
[320714914,1711529431786,-152.18496975,0.00039496,30]
[320714915,1711529431795,-5000.0,0.00039496,30]
[320714916,1711529431805,-162.69745552,0.00039911,2]
[320714917,1711529431815,-155.0,0.00044248,4]
[320714918,1711529431824,-162.69745552,0.00044249,2]
[320714919,1711529431833,-389.4,0.00044301,2]
[320714920,1711529431843,-998.25,0.00044319,2]
[320714921,1711529431852,-594.78693728,0.00045,4]
[320714922,1711529431861,-150.0,0.00045589,10]
[320714923,1711529431870,-250.0,0.00045763,120]
[320714924,1711529431879,-250.0,0.00045915,2]
[320714926,1711529431888,-155.67,0.00045918,120]
[320714928,1711529431899,-817.78,0.00046397,120]
[320714930,1711529431908,-389.4,0.00046565,2]
[320714931,1711529431919,-337.73,0.00046876,120]
[320714932,1711529431930,-250.0,0.0004706,110]
[320714933,1711529431940,-3438.5,0.00047466,120]
[320714934,1711529431949,-160.17758889,0.00047546,30]
[320714935,1711529431960,-1347.38413966,0.00047998,4]
[320714936,1711529431971,-155.70144668,0.00047998,4]
[320714937,1711529431981,-10889.60611864,0.00048,5]
[320714938,1711529431994,-1994.76797442,0.00048,5]
[320714939,1711529432008,-3627.1710847,0.00048,5]
[320714940,1711529432021,-334.50747262,0.00048,5]
[320714941,1711529432033,-2000.16839021,0.00048,5]
[320714942,1711529432045,-696.77431602,0.00048,5]
[320714943,1711529432100,-355.52000041,0.00048,5]
[320714944,1711529432125,-501.18252428,0.00048,5]
[320714945,1711529432147,-1000.0,0.00048,5]
[320714946,1711529432159,-6406.4,0.00048,5]
[320714947,1711529432186,-21676.4521187,0.00048,5]
[320714948,1711529432196,-1538.10067747,0.00048078,2]
[320714949,1711529432206,-310.0,0.00048221,4]
[320714950,1711529432217,-775.67608756,0.00048222,4]
[320714951,1711529432227,-155.49601435,0.00048222,4]
[320714952,1711529432236,-360.83535144,0.00048222,4]
[320714953,1711529432246,-155.27019899,0.00048223,4]
[320714954,1711529432256,-156.40801094,0.00048249,30]
[320714955,1711529432266,-1538.10067747,0.00048346,2]
[320714956,1711529432276,-1000.0,0.00048503,2]
[320714957,1711529432286,-1274.24618838,0.00048562,2]
[320714958,1711529432295,-432.078,0.0004858,2]
[320714959,1711529432306,-162.69745552,0.00048587,2]
[320714960,1711529432321,-2425.2878,0.0004868,2]
[320714961,1711529432333,-2469.4913,0.0004868,2]
[320714962,1711529432342,-1017.0,0.000487,117]
[320714963,1711529432353,-1538.10067747,0.00048733,2]
[320714964,1711529432363,-389.4,0.00048829,2]
[320714965,1711529432373,-156.40801094,0.00048864,30]
[320714966,1711529432382,-806.18760338,0.00048878,4]
[320714967,1711529432393,-310.0,0.00048878,4]
[320714968,1711529432404,-3738.08444239,0.00048879,4]
[320714969,1711529432414,-20394.27368221,0.0004888,2]
[320714970,1711529432424,-2000.0,0.0004888,7]
[320714971,1711529432435,-200.0,0.0004888,7]
[320714972,1711529432445,-1156.59374322,0.0004888,7]
[320714973,1711529432456,-200.0,0.0004888,7]
[320714974,1711529432467,-1658.57924,0.0004888,44]
[320714975,1711529432478,-200.0,0.0004888,7]
[320714976,1711529432488,-1000.0,0.00049,120]
[320714977,1711529432499,-517.32,0.00049,7]
[320714978,1711529432510,-1538.10067747,0.00049096,2]
[320714979,1711529432519,-3399.0,0.000493,2]
[320714980,1711529432529,-1274.24618839,0.00049314,2]
[320714981,1711529432540,-1538.10067748,0.00049346,2]
[320714982,1711529432549,-2000.0,0.00049369,7]
[320714983,1711529432560,-200.0,0.00049369,7]
[320714984,1711529432569,-200.0,0.00049369,7]
[320714985,1711529432580,-166.68043239,0.00049426,30]
[320714986,1711529432590,-158.06606792,0.00049662,30]
[320714987,1711529432600,-159.59,0.00049751,2]
[320714988,1711529432609,-1220.59207207,0.00049853,2]
[320714989,1711529432619,-2000.0,0.00049862,7]
[320714990,1711529432628,-200.0,0.00049862,7]
[320714991,1711529432637,-200.0,0.00049862,7]
[320714992,1711529432647,-167.95611615,0.00049885,30]
[320714993,1711529432657,-1771.04565061,0.00049891,2]
[320714994,1711529432667,-16073.2379,0.000499,2]
[320714995,1711529432677,-3802.4836,0.00049991,2]
[320714996,1711529432687,-1000.0,0.00049991,2]
[320714997,1711529432696,-1908.2011,0.00049991,2]
[320714998,1711529432706,-230.40491539,0.00049991,2]
[320714999,1711529437743,-489.42242584,0.0005,30]
[320715000,1711529437770,-396.96657,0.0005,30]
[320715001,1711529437782,-254.2234567,0.0005,30]
[320715002,1711529437795,-3859.38754746,0.0005,30]
[320715003,1711529437805,-329.54945254,0.0005,5]
[320715004,1711529437818,-158.23855946,0.0005,5]
[320715005,1711529437828,-180.06060876,0.00050091,2]
[320715035,1711529439572,-2868.20677174,0.00050091,2]
[320715036,1711529439856,-422.64,0.00050091,2]
[320715049,1711529442538,-24510.1919195,0.00050091,2]
[320715051,1711529442548,-3383.2544,0.00050091,2]
[320715052,1711529442557,-392.1619,0.00050091,2]
[320715053,1711529442566,-1000.0,0.000501,7]
[320715054,1711529442576,-160.17758889,0.00050116,60]
[320715055,1711529442588,-157.25738245,0.00050174,60]
[320715056,1711529442597,-160.04389286,0.00050232,60]
[320715057,1711529442606,-1000.0,0.00050261,2]
[320715058,1711529442615,-2000.0,0.00050361,7]
[320715059,1711529442625,-200.0,0.00050361,7]
[320715060,1711529442634,-200.0,0.00050361,7]
[320715061,1711529442643,-160.17758889,0.00050426,60]
[320715062,1711529442652,-157.032717,0.00050498,101]
[320715063,1711529442662,-186.97997371,0.00050539,60]
[320715064,1711529442671,-1248.6644958,0.00050734,120]
[320715065,1711529442680,-205.46475722,0.00050744,22]
[320715066,1711529442689,-1220.592072,0.00050787,2]
[320715067,1711529442699,-157.032717,0.00050798,102]
[320715068,1711529442708,-1771.04565056,0.0005082,2]
[320715069,1711529442717,-154424.63031412,0.00050844,2]
[320715070,1711529442755,-12583.7767854,0.00050844,2]
[320715071,1711529442790,-12600.0,0.00050844,2]
[320715072,1711529442851,-562.07763881,0.00050844,2]
[320715073,1711529442863,-950.0,0.00050844,2]
[320715074,1711529442875,-1725.46242003,0.00050844,2]
[320715075,1711529442985,-2178.24926731,0.00050844,2]
[320715076,1711529442996,-1948.18110568,0.00050844,2]
[320715077,1711529443008,-8635.63752434,0.00050844,2]
[320715078,1711529443020,-1751.38886043,0.00050844,2]
[320715081,1711529445860,-645.0,0.0005009,4]
[320715082,1711529445883,-6970.89010775,0.0005009,4]
[320715083,1711529445892,-23615.00765225,0.00050844,2]
[320715084,1711529445903,-24025.58843163,0.00050844,2]
[320715085,1711529445913,-168.85835234,0.00050844,2]
[320715086,1711529445923,-166.00845614,0.00050847,60]
[320715087,1711529445932,-1484.469,0.00050944,120]
[320715088,1711529445941,-364.087,0.00050944,120]
[320715089,1711529445951,-2984.163,0.00050944,120]
[320715090,1711529445960,-2423.0,0.00050944,120]
[320715091,1711529445969,-152.063,0.00050944,120]
[320715092,1711529445978,-1651.455,0.00050944,120]
[320715093,1711529445987,-217.0,0.00050944,2]
[320715094,1711529445996,-3050.09089989,0.00050944,120]
[320715095,1711529446013,-500.0,0.00050944,120]
[320715096,1711529446039,-2129.90910011,0.00050944,120]
[320715097,1711529446049,-4813.496,0.00050944,120]
[320715098,1711529446060,-2484.867,0.00050944,120]
[320715099,1711529446069,-40718.65634484,0.00050944,120]
[320715100,1711529446096,-457.57599352,0.00050944,120]
[320715110,1711529470272,60000.0,0.00018,2]
[320715111,1711529470301,1278.43733322,0.00018,2]
[320715112,1711529470330,48509.0,0.00018,2]
[320715113,1711529470360,7733353.01344394,0.00018,2]
[320715114,1711529470397,300000.0,0.00018,2]
[320715115,1711529470423,3506828.3870726,0.00018,2]
[320715116,1711529472507,3552.00509419,0.000154,2]
[320715119,1711529629483,3708.77772132,0.0002,2]
[320715120,1711529638361,6653.0,0.0002,2]
[320715121,1711529640833,1646.26960352,0.000181,2]
[320715122,1711529642574,3930110.39476217,0.00018,2]
[320715123,1711529648296,3950.0,0.0002,2]
[320715124,1711529673440,1853.83220971,0.00015,2]
[320715125,1711529675396,1274.41347738,0.0001899,2]
[320715126,1711529983084,1078.19710544,0.0001899,10]
[320715127,1711530003022,1078.19710544,0.0001899,10]
[320715128,1711530022988,1078.19710544,0.0001899,10]
[320715129,1711530040966,481.85252581,0.0001899,10]
[320715130,1711530040994,596.34457963,0.0001899,10]
[320715131,1711530058973,1078.19710544,0.0001899,10]
[320715132,1711530081000,1078.19710544,0.0001899,10]
[320715133,1711530102978,1078.19710544,0.0001899,10]
[320715134,1711530121173,721.89594841,0.0001899,10]
[320715135,1711530202039,-1000.0,0.00020992,2]
[320715136,1711530202064,-199.0,0.00020993,2]
[320715137,1711530202088,-1404.84362093,0.00021,2]
[320715138,1711530202112,-162.69745552,0.000219,2]
[320715139,1711530202136,-237.97621531,0.00022,2]
[320715140,1711530202161,-1051.13839027,0.00022,2]
[320715141,1711530202379,-763.08835726,0.00022498,2]
[320715142,1711530202426,-306.08333268,0.00022498,2]
[320715143,1711530202451,-330.3679996,0.00022499,2]
[320715144,1711530202478,-6544.80462843,0.000225,2]
[320715148,1711530298433,-238.93967837,0.00022498,2]
[320715149,1711530298460,-1000.0,0.00022499,2]
[320715150,1711530298485,-26350.21196654,0.000225,2]
[320715167,1711530441137,-155.0,0.00022497,2]
[320715168,1711530441161,-2546.71550538,0.00022497,2]
[320715169,1711530444473,-1735.29241015,0.00022497,2]
[320715173,1711530546730,-2202.5232927,0.00022499,2]
[320715174,1711530546752,-804.71577154,0.000225,2]
[320715175,1711530546776,-376.00000002,0.000225,2]
[320715176,1711530546799,-276.55861209,0.0002425,2]
[320715177,1711530546820,-1030.43369208,0.0002679,2]
[320715178,1711530546840,-280.73,0.0002679,2]
[320715179,1711530546860,-216.0,0.000286,2]
[320715180,1711530546881,-499.99,0.000286,2]
[320715181,1711530546901,-644.17906747,0.00030486,4]
[320715182,1711530546920,-150.0,0.00031099,2]
[320715183,1711530546940,-902.0972309,0.000311,2]
[320715184,1711530546960,-484.50959772,0.00031108,4]
[320715185,1711530546984,-763.08835726,0.00031108,4]
[320715186,1711530547005,-1878.1,0.00031108,4]
[320715187,1711530547029,-155.0,0.00031108,2]
[320715188,1711530547054,-233.63078955,0.00031108,4]
[320715189,1711530547074,-854.63911886,0.00031108,3]
[320715190,1711530547095,-2812.13765304,0.00031108,4]
[320715191,1711530547115,-155.0,0.00031109,4]
[320715192,1711530547135,-406.77867836,0.00031109,2]
[320715193,1711530547156,-1165.89163453,0.00031109,2]
[320715194,1711530547177,-102543.61874035,0.0003111,2]
[320715195,1711530547199,-600.0,0.000359,13]
[320715196,1711530547220,-186.07323194,0.00035999,15]
[320715197,1711530547240,-362.07819878,0.00035999,15]
[320715198,1711530547262,-647989.59565144,0.00036,4]
[320715199,1711530550453,3645.127945,0.00030333,2]
[320715200,1711530556132,363.92294364,0.00022497,2]
[320715201,1711530556346,441.01478668,0.00022497,2]
[320715202,1711530557261,3097.56500605,0.00022497,2]
[320715203,1711530559178,1995.8,0.0002,2]
[320715204,1711530559204,16407.88206941,0.0002,2]
[320715205,1711530560553,197.87808422,0.00016873,2]
[320715206,1711530565694,169.71775143,5e-05,2]
[320715209,1711530601732,287.02212981,5e-05,2]
[320715210,1711530602764,-424.72957603,0.00021371,2]
[320715211,1711530602783,-949.37404731,0.00021372,2]
[320715212,1711530602803,-14135.36582015,0.00022397,2]
[320715213,1711530602824,-763.08835726,0.00022496,2]
[320715214,1711530602843,-155.72729125,0.00022496,2]
[320715215,1711530602862,-2167.17725752,0.00022496,2]
[320715216,1711530602881,-844.1284905,0.00022496,2]
[320715217,1711530602900,-679.71524653,0.00022496,2]
[320715218,1711530602919,-422.49616774,0.00022496,2]
[320715219,1711530602939,-10557.61748168,0.00022496,2]
[320715220,1711530602959,-206.41970426,0.00022496,2]
[320715221,1711530602979,-1000.0,0.00022496,2]
[320715222,1711530603002,-917049.79500908,0.00022497,2]
[320715223,1711530603023,-155.0,0.00022497,2]
[320715224,1711530603044,-19579.69148142,0.00022497,2]
[320715225,1711530603064,-860.6805681,0.00022497,4]
[320715226,1711530603087,-758.86249884,0.00022497,2]
[320715227,1711530603107,-306.77009816,0.00022497,2]
[320715228,1711530603127,-1369.76176017,0.00022497,2]
[320715229,1711530603153,-341.96697422,0.00022497,2]
[320715230,1711530603372,-291.32964853,0.00022497,2]
[320715231,1711530603392,-317.77309168,0.00022497,2]
[320715232,1711530603413,-360.53539958,0.00022497,2]
[320715233,1711530603432,-1464.4092569,0.00022497,2]
[320715234,1711530603452,-4738.39030336,0.00022497,2]
[320715235,1711530603472,-295.41221015,0.00022497,2]
[320715236,1711530603492,-42385.56624122,0.00022497,2]
[320715237,1711530603512,-155.29374484,0.00022497,2]
[320715238,1711530603531,-513.00954369,0.00022497,2]
[320715239,1711530603550,-405.11159029,0.00022497,2]
[320715240,1711530603573,-1031.2102017,0.00022497,2]
[320715241,1711530603846,23392.59093784,5e-05,2]
[320715242,1711530603875,1169.631826,5e-05,2]
[320715243,1711530614008,234.29030631,5e-05,2]
[320715244,1711530614894,949.37404731,5e-05,2]
[320715245,1711530615236,755984.0521406,5e-05,2]
[320715246,1711530615272,78425.0,5e-05,2]
[320715247,1711530615302,85738.30787453,5e-05,2]
[320715248,1711530615721,385.53735154,5e-05,2]
[320715249,1711530615816,246.40180615,5e-05,2]
[320715250,1711530615847,317.77309168,5e-05,2]
[320715251,1711530616573,1032.35523185,0.00014,2]
[320715252,1711530617853,3210.99710035,5e-05,2]
[320715253,1711530618524,1331.26938124,5e-05,2]
[320715254,1711530620643,295.41221015,0.0001,2]
[320715255,1711530620773,42385.56624122,0.00015,2]
[320715256,1711530622734,19579.69148142,5e-05,2]
[320715273,1711530631748,-300.0,0.000195,2]
[320715274,1711530631763,-560.6805681,0.000195,2]
[320715275,1711530631773,-150.0,0.00021262,2]
[320715276,1711530631784,-3363.69415921,0.00021368,2]
[320715277,1711530631794,-301.76019222,0.00021368,2]
[320715278,1711530631803,-3102.90031844,0.00021368,2]
[320715279,1711530631817,-1212.24000026,0.00021368,2]
[320715280,1711530631829,-701.89621518,0.00021368,2]
[320715281,1711530631954,-899.790003,0.00021368,2]
[320715282,1711530631967,-3475.68416001,0.00021368,2]
[320715283,1711530632069,-4833.75,0.00021368,2]
[320715284,1711530632082,-627.80955868,0.00021368,2]
[320715285,1711530632094,-298.78959945,0.00021368,2]
[320715286,1711530632129,-472.52936896,0.00021368,2]
[320715287,1711530632141,-3699.60112918,0.00021368,2]
[320715288,1711530632151,-5515.67998838,0.00021369,2]
[320715289,1711530632161,-260.7652174,0.00021369,2]
[320715290,1711530632170,-1090.99795725,0.00021369,2]
[320715291,1711530632179,-668.48201671,0.00021369,2]
[320715292,1711530632190,-155.0,0.00021369,2]
[320715293,1711530632206,-3820.87369119,0.0002137,2]
[320715294,1711530632223,-813.8999,0.0002137,2]
[320715295,1711530632250,-1057.226919,0.0002137,2]
[320715296,1711530632267,-276.6552202,0.0002137,2]
[320715297,1711530632281,-18480.999999,0.0002137,2]
[320715298,1711530632330,-286.94495286,0.0002137,2]
[320715299,1711530632342,-2040.55786066,0.0002137,2]
[320715366,1711530633216,920147.36001513,5e-05,2]
[320715367,1711530633823,317.77309168,5e-05,2]
[320715368,1711530634873,949.37404731,5e-05,2]
[320715372,1711530637745,-330.06974,0.0002137,2]
[320715373,1711530637918,-6978.6074146,0.0002137,2]
[320715374,1711530637927,-5944.90610904,0.00021371,2]
[320715375,1711530637937,-311.04647636,0.00022396,2]
[320715376,1711530637968,-0.00229663,0.00022396,2]
[320715377,1711530637984,-698.02113225,0.00022396,2]
[320715378,1711530637996,-924.82999995,0.00022396,2]
[320715379,1711530638007,-36.24309481,0.00022396,2]
[320715380,1711530638018,-14135.36582008,0.0002629,2]
[320715381,1711530638027,-2983.15254333,0.00030182,4]
[320715382,1711530638037,-568.4225111,0.00030182,4]
[320715383,1711530638046,-2166.20537924,0.00030182,4]
[320715384,1711530638056,-423.77389061,0.00030182,4]
[320715385,1711530638066,-14135.36582008,0.00030183,2]
[320715386,1711530638075,-841.73343008,0.00031108,4]
[320715387,1711530638085,-14135.36582008,0.00034076,2]
[320715388,1711530638094,-222.268798,0.00034247,14]
[320715389,1711530638106,-222.268798,0.00035068,14]
[320715390,1711530638116,-222.268798,0.0003589,14]
[320715391,1711530638125,-222.268798,0.00036712,14]
[320715392,1711530638134,-222.268798,0.00037534,14]
[320715393,1711530638144,-14135.36582008,0.00037969,2]
[320715394,1711530638153,-205.46475725,0.00038099,10]
[320715395,1711530638162,-429.68080194,0.00038173,2]
[320715396,1711530638172,-214.69761119,0.00038173,4]
[320715397,1711530638181,-520.479,0.00038173,4]
[320715398,1711530638191,-155.95610214,0.00038174,4]
[320715399,1711530638200,-227.77830861,0.00038174,4]
[320715400,1711530638210,-343.59981422,0.00038174,2]
[320715401,1711530638219,-362.36463005,0.00038174,4]
[320715402,1711530638228,-199.59466366,0.00038174,4]
[320715403,1711530638238,-250.0,0.00038175,110]
[320715404,1711530638247,-1653.50375407,0.00038211,4]
[320715405,1711530638257,-1582.02,0.00038212,2]
[320715406,1711530638267,-222.268798,0.00038356,14]
[320715407,1711530638277,-3929.51,0.00038594,2]
[320715408,1711530638286,-222.268798,0.00039178,14]
[320715409,1711530638296,-4753.15701994,0.0004,4]
[320715411,1711530638305,-7937.94912886,0.0004,4]
[320715413,1711530638314,-892.02580912,0.0004,30]
[320715416,1711530638324,-5743.01202704,0.0004,4]
[320715417,1711530638333,-3357.71176501,0.0004,4]
[320715418,1711530638343,-222.268798,0.0004,14]
[320715419,1711530638354,-470.25,0.00040717,2]
[320715420,1711530638363,-222.268798,0.00040822,14]
[320715421,1711530638373,-1582.02,0.00040952,2]
[320715422,1711530638382,-7841.77272824,0.00041,4]
[320715423,1711530638392,-250.0,0.0004104,2]
[320715424,1711530638401,-1468.99,0.00041627,120]
[320715425,1711530638411,-222.268798,0.00041644,14]
[320715426,1711530638421,-14135.36582008,0.00041862,2]
[320715427,1711530638431,-150.0,0.00042102,120]
[320715428,1711530638441,-250.0,0.00042351,2]
[320715429,1711530638451,-3078.42,0.00042635,2]
[320715430,1711530638460,-470.25,0.00042981,2]
[320715431,1711530638470,-1500.0,0.00043034,120]
[320715432,1711530638481,-593.25,0.00043398,2]
[320715433,1711530638491,-593.25,0.0004341,2]
[320715434,1711530638501,-593.25,0.00043421,2]
[320715435,1711530638510,-593.25,0.00043433,2]
[320715436,1711530638519,-593.25,0.00043444,2]
[320715437,1711530638529,-593.25,0.00043456,2]
[320715438,1711530638539,-593.25,0.00043467,2]
[320715439,1711530638548,-593.25,0.00043478,2]
[320715440,1711530638558,-593.25,0.0004349,2]
[320715441,1711530638567,-593.25,0.00043501,2]
[320715442,1711530638577,-593.25,0.00043513,2]
[320715443,1711530638586,-593.25,0.00043524,2]
[320715444,1711530638596,-681.48,0.00043529,2]
[320715445,1711530638607,-593.25,0.00043535,2]
[320715446,1711530638617,-593.25,0.00043547,2]
[320715447,1711530638628,-593.25,0.00043558,2]
[320715448,1711530638638,-593.25,0.0004357,2]
[320715449,1711530638648,-593.25,0.00043581,2]
[320715450,1711530638657,-593.25,0.00043593,2]
[320715451,1711530638667,-593.25,0.00043604,2]
[320715452,1711530638676,-593.25,0.00043615,2]
[320715453,1711530638688,-1582.02,0.00043692,2]
[320715454,1711530638699,-231.03,0.00043816,2]
[320715455,1711530638709,-269.83900737,0.00044444,7]
[320715456,1711530638719,-1518.92,0.00044734,2]
[320715457,1711530638729,-22038.94073476,0.00045,4]
[320715458,1711530638738,-339.22517766,0.00045,10]
[320715459,1711530638747,-500.0,0.00045,14]
[320715460,1711530638757,-470.25,0.00045245,2]
[320715461,1711530638769,-2085.52927742,0.00045416,4]
[320715462,1711530638779,-14135.36582008,0.00045755,2]
[320715463,1711530638789,-164.47,0.0004626,120]
[320715464,1711530638799,-414.82,0.00046598,2]
[320715465,1711530638808,-155.79707804,0.0004685,4]
[320715466,1711530638819,-1026.94712488,0.00047,2]
[320715467,1711530638830,-470.25,0.00047509,2]
[320715468,1711530638839,-151.70631409,0.00047583,30]
[320715469,1711530638850,-1217.93391781,0.00047806,4]
[320715470,1711530638861,-3711.35802855,0.00047806,4]
[320715471,1711530638870,-269.03391016,0.00047806,4]
[320715472,1711530638879,-156.8920322,0.00047806,4]
[320715473,1711530638889,-277.10244708,0.00047806,4]
[320715474,1711530638899,-315.49159155,0.00047806,4]
[320715475,1711530639073,-544.82797075,0.00047806,4]
[320715476,1711530639136,-173.65615147,0.00047806,4]
[320715477,1711530639147,-771.88505994,0.00047806,4]
[320715478,1711530639158,-165.09636315,0.00047806,4]
[320715479,1711530639167,-644.0,0.00047806,4]
[320715480,1711530639178,-2632.67215277,0.00047806,4]
[320715481,1711530639188,-348.96297264,0.00047806,4]
[320715482,1711530639198,-306.80547855,0.00047806,4]
[320715483,1711530639208,-1239.70359178,0.00047806,4]
[320715484,1711530639218,-217.82483805,0.00047806,4]
[320715485,1711530639228,-2817.22063706,0.00047806,4]
[320715486,1711530639240,-403.5154761,0.00047806,4]
[320715487,1711530639250,-5773.87424511,0.00047806,2]
[320715488,1711530639261,-169.98865417,0.00047806,4]
[320715489,1711530639271,-1410.11946795,0.00047806,4]
[320715490,1711530639280,-4381.43517433,0.00047806,4]
[320715491,1711530639290,-3250.40640357,0.00047806,4]
[320715492,1711530639299,-190.3105307,0.00047806,4]
[320715493,1711530639310,-155.23710186,0.00047806,4]
[320715494,1711530639319,-155.0,0.00047807,4]
[320715495,1711530639329,-2110.32573723,0.00047807,4]
[320715496,1711530639339,-18624.902,0.00047808,2]
[320715497,1711530639348,-2500.0,0.000479,2]
[320715498,1711530639362,-938.2344,0.000479,2]
[320715499,1711530639372,-90662.75609396,0.00047919,7]
[320715500,1711530639381,-43075.0,0.00048,120]
[320715501,1711530639391,-30103.0,0.00048,120]
[320715502,1711530639401,-503.6111413,0.00048,100]
[320715503,1711530639411,-560.75087012,0.00048,4]
[320715504,1711530639421,-167.95611615,0.00048186,30]
[320715505,1711530639430,-156.40801094,0.00048399,30]
[320715506,1711530639440,-405.8622,0.000484,2]
[320715507,1711530639450,-152.40530738,0.00048412,38]
[320715508,1711530639460,-788.5113739,0.00048412,2]
[320715509,1711530639470,-1519.72573086,0.00048422,13]
[320715510,1711530639480,-305.81378291,0.0004849,2]
[320715511,1711530639489,-434.17087452,0.00048499,120]
[320715512,1711530639498,-281.20442799,0.00048499,120]
[320715513,1711530639507,-500.0,0.00048499,120]
[320715514,1711530639517,-453.47259013,0.00048499,120]
[320715515,1711530639529,-194533.82982586,0.000485,120]
[320715516,1711530639538,-166.74515287,0.00048619,30]
[320715517,1711530639547,-167.95611615,0.00048648,30]
[320715518,1711530639557,-173.09,0.00048684,2]
[320715519,1711530639566,-150.0,0.000487,2]
[320715520,1711530639575,-5150.0,0.000487,7]
[320715522,1711530639585,-1111.0,0.000487,4]